lending/lending_fUSD_20240807
["ID","MTS","AMOUNT","RATE_DAILY","PERIOD"]
[334402919,1723035044963,-1500.0,0.00022077,2]
[334402920,1723035044974,-5005.96543108,0.00022125,2]
[334402921,1723035044984,-2500.0,0.00022155,5]
[334402922,1723035044994,-347.18470265,0.00022169,2]
[334402923,1723035045003,-500.0,0.00022192,2]
[334402924,1723035045013,-500.0,0.00022215,2]
[334402925,1723035045022,-1500.0,0.00022226,2]
[334402926,1723035045032,-841.14,0.00022285,2]
[334402927,1723035045042,-217.0,0.0002233,2]
[334402928,1723035045051,-7500.0,0.00022333,2]
[334402929,1723035045061,-500.0,0.00022334,7]
[334402930,1723035045070,-500.0,0.00022393,2]
[334402931,1723035045080,-15480.7415892,0.00022396,4]
[334402932,1723035045093,-153.2,0.00022398,2]
[334402933,1723035045102,-171.0,0.000224,2]
[334402934,1723035045111,-171.0,0.000224,2]
[334402935,1723035045120,-269.0,0.000224,2]
[334402936,1723035045130,-449.0,0.000224,8]
[334402937,1723035045139,-19602.7493401,0.000224,4]
[334402938,1723035045148,-151.0,0.00022401,7]
[334402939,1723035045159,-151.0,0.00022401,7]
[334402940,1723035045168,-151.0,0.00022401,7]
[334402941,1723035045177,-500.0,0.00022406,7]
[334402942,1723035045187,-19602.7493401,0.00022408,4]
[334402943,1723035045196,-15480.7415892,0.0002241,4]
[334402944,1723035045205,-19602.7493401,0.00022412,4]
[334402945,1723035045215,-30961.4831783,0.00022418,4]
[334402946,1723035045224,-19602.7493401,0.00022418,4]
[334402947,1723035045234,-151.0,0.0002242,7]
[334402948,1723035045244,-9706.18022412,0.0002242,4]
[334402949,1723035045258,-21255.30295418,0.0002242,4]
[334402950,1723035045267,-19602.7493401,0.0002242,4]
[334402951,1723035045277,-15480.7415892,0.00022423,4]
[334402952,1723035045287,-19602.7493401,0.00022423,4]
[334402953,1723035045296,-150.0,0.00022424,2]
[334402954,1723035045306,-150.0,0.00022424,2]
[334402955,1723035045316,-150.0,0.00022424,2]
[334402956,1723035045325,-426.02,0.00022424,2]
[334402957,1723035045335,-774.2,0.00022424,2]
[334402958,1723035045345,-300.0,0.00022424,2]
[334402959,1723035045355,-150.0,0.00022424,2]
[334402960,1723035045364,-150.0,0.00022424,2]
[334402961,1723035045373,-530.69,0.00022424,2]
[334402962,1723035045383,-500.0,0.00022426,2]
[334402963,1723035045392,-191.16273,0.00022426,2]
[334402964,1723035045402,-500.0,0.00022427,7]
[334402965,1723035045411,-3971.3363659,0.00022428,2]
[334402966,1723035045420,-20253.469746,0.00022428,2]
[334402967,1723035045430,-11018.6900123,0.00022428,2]
[334402968,1723035045440,-151.0,0.00022428,7]
[334402969,1723035045450,-151.0,0.00022428,7]
[334402970,1723035045503,-151.0,0.00022428,7]
[334402971,1723035045512,-500.0,0.0002243,2]
[334402972,1723035045523,-500.0,0.0002243,2]
[334402973,1723035045532,-500.0,0.0002243,2]
[334402974,1723035045542,-500.0,0.0002243,2]
[334402975,1723035045551,-500.0,0.0002243,2]
[334402976,1723035045561,-500.0,0.0002243,2]
[334402977,1723035045571,-500.0,0.0002243,2]
[334402978,1723035045582,-500.0,0.0002243,2]
[334402979,1723035045592,-500.0,0.0002243,2]
[334402980,1723035045601,-500.0,0.0002243,2]
[334402981,1723035045610,-500.0,0.0002243,2]
[334402982,1723035045620,-500.0,0.0002243,2]
[334402983,1723035045631,-500.0,0.0002243,2]
[334402984,1723035045642,-500.0,0.0002243,2]
[334402985,1723035045652,-500.0,0.0002243,2]
[334402986,1723035045662,-500.0,0.0002243,2]
[334402987,1723035045671,-500.0,0.0002243,2]
[334402988,1723035045681,-500.0,0.0002243,2]
[334402989,1723035045690,-500.0,0.0002243,2]
[334402990,1723035045699,-500.0,0.0002243,2]
[334402991,1723035045708,-500.0,0.0002243,2]
[334402992,1723035045717,-500.0,0.0002243,2]
[334402993,1723035045726,-500.0,0.0002243,2]
[334402994,1723035045736,-500.0,0.0002243,2]
[334402995,1723035045745,-500.0,0.0002243,2]
[334402996,1723035045754,-500.0,0.0002243,2]
[334402997,1723035045764,-500.0,0.0002243,2]
[334402998,1723035045774,-500.0,0.0002243,2]
[334402999,1723035045783,-500.0,0.0002243,2]
[334403000,1723035045792,-500.0,0.0002243,2]
[334403001,1723035045801,-500.0,0.0002243,2]
[334403002,1723035045810,-500.0,0.0002243,2]
[334403003,1723035045819,-500.0,0.0002243,2]
[334403004,1723035045828,-500.0,0.0002243,2]
[334403005,1723035045837,-500.0,0.0002243,2]
[334403006,1723035045847,-500.0,0.0002243,2]
[334403007,1723035045856,-500.0,0.0002243,2]
[334403008,1723035045867,-500.0,0.0002243,2]
[334403009,1723035045876,-500.0,0.0002243,2]
[334403010,1723035045886,-500.0,0.0002243,2]
[334403011,1723035045898,-500.0,0.0002243,2]
[334403012,1723035045907,-500.0,0.0002243,2]
[334403013,1723035045916,-500.0,0.0002243,2]
[334403014,1723035045925,-500.0,0.0002243,2]
[334403015,1723035045936,-500.0,0.0002243,2]
[334403016,1723035045946,-500.0,0.0002243,2]
[334403017,1723035045956,-500.0,0.0002243,2]
[334403018,1723035045967,-500.0,0.0002243,2]
[334403019,1723035045978,-500.0,0.0002243,2]
[334403020,1723035045987,-500.0,0.0002243,2]
[334403021,1723035045996,-500.0,0.0002243,2]
[334403023,1723035046006,-500.0,0.0002243,2]
[334403024,1723035046015,-500.0,0.0002243,2]
[334403025,1723035046024,-500.0,0.0002243,2]
[334403026,1723035046034,-500.0,0.0002243,2]
[334403027,1723035046043,-500.0,0.0002243,2]
[334403028,1723035046051,-500.0,0.0002243,2]
[334403029,1723035046061,-500.0,0.0002243,2]
[334403030,1723035046070,-500.0,0.0002243,2]
[334403031,1723035046079,-500.0,0.0002243,2]
[334403032,1723035046088,-500.0,0.0002243,2]
[334403033,1723035046099,-500.0,0.0002243,2]
[334403034,1723035046107,-500.0,0.0002243,2]
[334403035,1723035046116,-500.0,0.0002243,2]
[334403036,1723035046125,-500.0,0.0002243,2]
[334403037,1723035046135,-500.0,0.0002243,2]
[334403038,1723035046144,-500.0,0.0002243,2]
[334403039,1723035046153,-500.0,0.0002243,2]
[334403040,1723035046163,-500.0,0.0002243,2]
[334403041,1723035046171,-500.0,0.0002243,2]
[334403042,1723035046182,-500.0,0.0002243,2]
[334403043,1723035046192,-500.0,0.0002243,2]
[334403044,1723035046202,-500.0,0.0002243,2]
[334403045,1723035046211,-500.0,0.0002243,2]
[334403046,1723035046220,-500.0,0.0002243,2]
[334403047,1723035046229,-500.0,0.0002243,2]
[334403048,1723035046238,-500.0,0.0002243,2]
[334403049,1723035046247,-500.0,0.0002243,2]
[334403050,1723035046256,-151.0,0.0002243,7]
[334403051,1723035046266,-151.0,0.0002243,7]
[334403052,1723035046275,-151.0,0.0002243,7]
[334403053,1723035046284,-151.0,0.0002243,7]
[334403054,1723035046293,-151.0,0.0002243,7]
[334403055,1723035046302,-151.0,0.0002243,7]
[334403056,1723035046311,-151.0,0.0002243,7]
[334403057,1723035046321,-151.0,0.0002243,7]
[334403058,1723035046330,-151.0,0.0002243,7]
[334403059,1723035046340,-151.0,0.0002243,7]
[334403060,1723035046350,-2300.25935118,0.00022432,2]
[334403061,1723035046359,-833.33,0.00022432,7]
[334403062,1723035046369,-32601.17157423,0.00022433,2]
[334403063,1723035046378,-500.0,0.00022439,7]
[334403064,1723035046387,-1000.0,0.00022459,2]
[334403065,1723035046396,-15480.7415892,0.00022463,4]
[334403066,1723035046405,-1105.47,0.00022465,2]
[334403067,1723035046415,-1105.47,0.00022465,2]
[334403068,1723035046424,-1105.47,0.00022465,2]
[334403069,1723035046433,-1105.47,0.00022465,7]
[334403070,1723035046443,-1000.0,0.00022466,2]
[334403071,1723035046451,-500.0,0.00022466,2]
[334403072,1723035046461,-19602.7493401,0.0002248,4]
[334403073,1723035046470,-153.2,0.0002248,2]
[334403074,1723035046481,-500.0,0.00022489,7]
[334403075,1723035046490,-15480.7415892,0.0002249,4]
[334403076,1723035046500,-19602.7493401,0.0002249,4]
[334403077,1723035046509,-151.0,0.0002249,7]
[334403078,1723035046518,-151.0,0.0002249,7]
[334403079,1723035046527,-151.0,0.0002249,7]
[334403080,1723035046536,-556.238419,0.0002249,7]
[334403081,1723035046545,-556.238419,0.0002249,7]
[334403082,1723035046555,-150.0,0.00022495,2]
[334403083,1723035046565,-500.0,0.00022499,7]
[334403084,1723035046574,-33468.31685994,0.000225,2]
[334403085,1723035046583,-500.0,0.00022554,2]
[334403086,1723035046594,-151.0,0.00022554,7]
[334403087,1723035046603,-151.0,0.00022554,7]
[334403088,1723035046612,-293.648315,0.00022554,7]
[334403089,1723035046622,-500.0,0.00022633,2]
[334403090,1723035046631,-500.0,0.00022698,2]
[334403091,1723035046641,-152.0,0.00022699,4]
[334403092,1723035046652,-203.1549,0.000227,2]
[334403093,1723035046662,-500.0,0.00022716,2]
[334403094,1723035046671,-15480.7415892,0.00022722,4]
[334403095,1723035046682,-151.0,0.00022732,7]
[334403096,1723035046693,-151.0,0.00022732,7]
[334403097,1723035046703,-500.0,0.00022733,2]
[334403098,1723035046712,-347.18470265,0.00022746,2]
[334403099,1723035046722,-500.0,0.00022769,2]
[334403100,1723035046732,-151.0,0.0002277,7]
[334403101,1723035046741,-187.760188,0.0002277,7]
[334403102,1723035046751,-151.0,0.0002277,7]
[334403103,1723035046762,-271.047322,0.0002277,7]
[334403104,1723035046771,-151.0,0.0002277,7]
[334403105,1723035046781,-19602.7493401,0.0002277,4]
[334403106,1723035046791,-15480.7415892,0.0002277,4]
[334403107,1723035046801,-1105.47,0.0002278,7]
[334403108,1723035046811,-833.33,0.00022789,7]
[334403109,1723035046820,-500.0,0.00022789,7]
[334403110,1723035046831,-15480.7415892,0.0002279,4]
[334403111,1723035046841,-3000.0,0.000228,7]
[334403112,1723035046851,-1655.0,0.000228,21]
[334403113,1723035046861,-7263.17203223,0.000228,2]
[334403114,1723035046870,-4534.84459588,0.000228,2]
[334403115,1723035046879,-153.15194371,0.000228,2]
[334403116,1723035046889,-19602.7493401,0.0002282,4]
[334403117,1723035046903,-15480.7415892,0.0002283,4]
[334403118,1723035046912,-150.0,0.00022838,2]
[334403119,1723035046922,-151.0,0.0002284,7]
[334403120,1723035046931,-151.0,0.0002284,7]
[334403121,1723035046941,-256.600866,0.0002284,7]
[334403122,1723035046950,-556.238419,0.0002284,7]
[334403123,1723035046959,-556.238419,0.0002284,7]
[334403125,1723035046970,-19602.7493401,0.00022851,4]
[334403126,1723035046980,-46442.2247675,0.0002286,4]
[334403127,1723035046990,-39205.4986801,0.0002286,4]
[334403128,1723035046999,-153.2,0.0002286,2]
[334403129,1723035047010,-151.0,0.00022861,7]
[334403130,1723035047019,-151.0,0.00022861,7]
[334403131,1723035047029,-1105.47,0.0002287,7]
[334403132,1723035047038,-151.0,0.0002287,7]
[334403133,1723035047048,-151.0,0.0002287,7]
[334403134,1723035047057,-171.8433,0.0002287,7]
[334403135,1723035047066,-151.0,0.0002287,7]
[334403136,1723035047076,-151.0,0.0002287,7]
[334403137,1723035047085,-500.0,0.0002287,7]
[334403138,1723035047096,-500.0,0.0002287,7]
[334403139,1723035047106,-77403.7079458,0.0002287,4]
[334403140,1723035047116,-200.0,0.00022873,2]
[334403141,1723035047126,-151.0,0.0002288,2]
[334403142,1723035047135,-151.0,0.0002288,7]
[334403143,1723035047144,-154.7076,0.0002288,7]
[334403144,1723035047154,-154.7076,0.0002288,7]
[334403145,1723035047163,-250.464641,0.0002288,7]
[334403146,1723035047173,-151.0,0.0002288,7]
[334403147,1723035047183,-151.0,0.0002288,7]
[334403148,1723035047193,-151.0,0.0002288,7]
[334403149,1723035047202,-151.0,0.0002288,7]
[334403150,1723035047211,-165.550403,0.0002288,7]
[334403151,1723035047221,-833.33,0.0002288,7]
[334403152,1723035047230,-500.0,0.0002288,7]
[334403153,1723035047239,-151.0,0.0002288,7]
[334403154,1723035047249,-151.0,0.0002288,7]
[334403155,1723035047259,-556.238419,0.0002288,7]
[334403156,1723035047268,-556.238419,0.0002288,7]
[334403157,1723035047278,-466.48701934,0.0002288,7]
[334403158,1723035047288,-833.33,0.00022889,7]
[334403159,1723035047298,-567.42,0.00022889,7]
[334403160,1723035047307,-151.0,0.0002289,2]
[334403161,1723035047317,-151.0,0.0002289,7]
[334403162,1723035047327,-154.7076,0.0002289,7]
[334403163,1723035047336,-154.7076,0.0002289,7]
[334403164,1723035047348,-151.0,0.0002289,7]
[334403165,1723035047358,-176424.744061,0.0002289,4]
[334403166,1723035047368,-1261.28972316,0.0002289,2]
[334403167,1723035047378,-151.0,0.0002289,7]
[334403168,1723035047387,-151.0,0.0002289,7]
[334403169,1723035047397,-1105.47,0.00022899,7]
[334403170,1723035047407,-1105.47,0.00022899,7]
[334403171,1723035047417,-189.435707,0.00022899,2]
[334403172,1723035047427,-151.0,0.00022899,7]
[334403173,1723035047436,-154.7076,0.00022899,7]
[334403174,1723035047445,-154.7076,0.00022899,7]
[334403175,1723035047455,-151.0,0.00022899,7]
[334403176,1723035047465,-833.33,0.00022899,7]
[334403177,1723035047474,-833.33,0.00022899,7]
[334403178,1723035047484,-500.0,0.00022899,7]
[334403179,1723035047494,-500.0,0.00022899,7]
[334403180,1723035047503,-188628.76180503,0.000229,7]
[334403181,1723035047517,-380.87213384,0.000229,7]
[334403182,1723035047528,-488.19211882,0.000229,7]
[334403183,1723035047540,-1017.6830018,0.000229,7]
[334403184,1723035047551,-400.36535376,0.000229,7]
[334403185,1723035047563,-446.51173508,0.000229,7]
[334403186,1723035047861,-575.47544634,0.000229,7]
[334403187,1723035047874,-1716.45,0.000229,7]
[334403188,1723035047886,-287.88070759,0.000229,7]
[334403189,1723035047902,-3670.17423696,0.000229,7]
[334403190,1723035047914,-65086.75657293,0.000229,7]
[334403191,1723035047925,-281.326473,0.000229,7]
[334403192,1723035047938,-436.2230877,0.000229,7]
[334403193,1723035047949,-460.32635449,0.000229,7]
[334403194,1723035047960,-73325.23097673,0.000229,7]
[334403195,1723035047973,-29586.91050982,0.000229,7]
[334403196,1723035047983,-600.64996105,0.000229,7]
[334403197,1723035047994,-313.60578957,0.000229,7]
[334403198,1723035048006,-2750.399463,0.000229,7]
[334403199,1723035048015,-265.74,0.000229,2]
[334403200,1723035048024,-151.0,0.000229,7]
[334403201,1723035048034,-154.7076,0.000229,7]
[334403202,1723035048043,-154.7076,0.000229,7]
[334403203,1723035048053,-151.0,0.000229,7]
[334403204,1723035048064,-151.0,0.000229,7]
[334403205,1723035048074,-151.0,0.000229,7]
[334403206,1723035048084,-151.0,0.000229,7]
[334403207,1723035048094,-151.0,0.000229,7]
[334403208,1723035048103,-556.238419,0.000229,7]
[334403209,1723035048112,-556.238419,0.000229,7]
[334403210,1723035048123,-5124.10901106,0.000229,2]
[334403211,1723035048132,-515.48895436,0.000229,4]
[334403212,1723035048142,-151.0,0.000229,7]
[334403213,1723035048152,-151.0,0.000229,7]
[334403214,1723035048162,-756.77579858,0.0002291,2]
[334403215,1723035048309,-283.44748515,0.00012121,2]
[334403216,1723035048319,-509.28475768,0.00012581,2]
[334403217,1723035048332,-675.22924301,0.00012581,2]
[334403218,1723035048344,-1074.23899927,0.00012665,2]
[334403219,1723035048355,-255.09228319,0.00012666,2]
[334403220,1723035048365,-243.154171,0.00012681,2]
[334403221,1723035048375,-737.40257968,0.0001269,2]
[334403222,1723035048384,-267.42272386,0.00012749,7]
[334403223,1723035048396,-311.13128217,0.00012749,7]
[334403224,1723035048406,-428.61871783,0.00013999,2]
[334403225,1723035048564,-24518.91999933,0.00013999,2]
[334403226,1723035048578,-1470.51803953,0.00013999,2]
[334403227,1723035048589,-1012.5,0.00013999,2]
[334403228,1723035048603,-2289.91559988,0.00013999,2]
[334403229,1723035191387,500.0,0.00024999,120]
[334403230,1723035200540,500.0,0.00024932,120]
[334403231,1723035798838,500.0,0.00024932,120]
[334403232,1723035920309,25000.0,0.00024658,30]
[334403233,1723035924620,25000.0,0.00024658,31]
[334403234,1723035927740,25000.0,0.00024658,32]
[334403235,1723035931407,25000.0,0.00024658,33]
[334403244,1723036232748,-1746.55062526,0.00011105,2]
[334403245,1723036232761,-638.71259502,0.00011105,2]
[334403246,1723036232770,-2209.93398544,0.00011105,2]
[334403247,1723036232780,-655.42832248,0.00011105,2]
[334403248,1723036232806,-418.81067679,0.00011105,2]
[334403249,1723036232815,-737.40257968,0.00011105,2]
[334403250,1723036232825,-210.97297228,0.00011105,2]
[334403251,1723036232835,-210.97297228,0.00011105,2]
[334403252,1723036232844,-155.0,0.00011322,2]
[334403253,1723036232853,-641.237,0.00011859,2]
[334403254,1723036232863,-35713.01941175,0.00013283,2]
[334403255,1723036232872,-150.0,0.00013296,2]
[334403256,1723036232881,-418.35,0.00013699,2]
[334403257,1723036232893,-171.83,0.00013699,2]
[334403258,1723036232903,-15476.78696175,0.00013879,2]
[334403259,1723036232912,-499.99,0.00013889,2]
[334403260,1723036232921,-856.85,0.00013972,2]
[334403261,1723036232930,-563.59,0.00013973,2]
[334403262,1723036232940,-156.18,0.00013973,2]
[334403263,1723036232950,-164.34,0.00013973,2]
[334403264,1723036232959,-1425.84,0.00013973,2]
[334403265,1723036232969,-2834.94827879,0.00013996,2]
[334403267,1723036232979,-5318.4156,0.00014351,2]
[334403269,1723036232988,-364.3739,0.00014351,2]
[334403271,1723036232997,-1001.5,0.00015,2]
[334403273,1723036233006,-9215.0,0.00015,2]
[334403274,1723036233015,-25312.48255048,0.00016799,2]
[334403275,1723036233027,-25312.48255048,0.00016799,2]
[334403276,1723036233037,-342.54,0.00016922,2]
[334403277,1723036233047,-270.46597516,0.00016953,2]
[334403278,1723036233056,-328.11060008,0.00017004,2]
[334403279,1723036233066,-519.91345954,0.00017259,2]
[334403280,1723036233075,-158.93675276,0.00017259,2]
[334403281,1723036233085,-186.11,0.00017436,2]
[334403282,1723036233095,-211.62746688,0.00017533,2]
[334403283,1723036233104,-200.0,0.00017725,2]
[334403284,1723036233113,-2000.0,0.00017725,2]
[334403285,1723036233122,-250.0,0.00017933,2]
[334403286,1723036233132,-500.0,0.00018097,2]
[334403287,1723036233144,-500.0,0.0001824,2]
[334403288,1723036233160,-500.0,0.00018246,2]
[334403289,1723036233170,-500.0,0.00018268,2]
[334403290,1723036233179,-500.0,0.00018288,2]
[334403291,1723036233188,-500.0,0.0001842,2]
[334403292,1723036233197,-500.0,0.00018486,2]
[334403293,1723036233207,-155.0,0.00018599,2]
[334403294,1723036233216,-250.0,0.00018753,2]
[334403295,1723036233226,-155.0,0.00018898,2]
[334403296,1723036233235,-300.0,0.00018959,2]
[334403297,1723036233245,-206.68578726,0.00018999,2]
[334403298,1723036233256,-10530.0262807,0.00018999,2]
[334403299,1723036233266,-155.0,0.00019,2]
[334403300,1723036233276,-568.59804658,0.00019045,2]
[334403301,1723036233285,-22648.60761236,0.00019176,2]
[334403302,1723036233295,-155.3786545,0.00019177,2]
[334403303,1723036233306,-155.3786545,0.00019177,2]
[334403304,1723036233316,-902.66,0.00019217,2]
[334403305,1723036233326,-155.0,0.0001924,2]
[334403306,1723036233336,-500.0,0.00019257,2]
[334403307,1723036233346,-2751.0,0.00019295,2]
[334403308,1723036233355,-500.0,0.00019451,2]
[334403309,1723036233365,-617.67271878,0.00019602,2]
[334403310,1723036233375,-500.0,0.00019646,2]
[334403311,1723036233385,-186.11,0.000197,2]
[334403312,1723036233398,-500.0,0.00019736,2]
[334403313,1723036233407,-5401.5400912,0.00019999,2]
[334403314,1723036233416,-5000.0,0.00019999,2]
[334403315,1723036233425,-6291.69894213,0.0002,2]
[334403316,1723036233435,-155.0,0.0002,2]
[334403317,1723036233445,-155.0,0.0002,2]
[334403318,1723036233454,-17830.35521724,0.0002,2]
[334403319,1723036233463,-500.0,0.00020068,2]
[334403320,1723036233473,-266.11121739,0.00020109,2]
[334403321,1723036233483,-1763.4763965,0.00020191,2]
[334403322,1723036233492,-910.28308876,0.00020315,2]
[334403323,1723036233502,-300.0,0.00020328,2]
[334403324,1723036233511,-1405.50443999,0.0002038,2]
[334403325,1723036233520,-167.0,0.00020387,2]
[334403326,1723036233530,-563.59,0.00020447,2]
[334403327,1723036233539,-3031.1823392,0.00020587,2]
[334403328,1723036233548,-2340.89780687,0.00020588,2]
[334403329,1723036233557,-2145.03106891,0.00020588,2]
[334403330,1723036233566,-298.52611506,0.00020821,2]
[334403331,1723036233576,-719.68870544,0.00020821,2]
[334403332,1723036233586,-155.0,0.00020821,2]
[334403333,1723036233595,-3978.09066242,0.00020821,2]
[334403334,1723036233604,-500.0,0.00020822,2]
[334403335,1723036233614,-500.0,0.00020822,2]
[334403336,1723036233623,-428.80697026,0.00020822,2]
[334403337,1723036233632,-500.0,0.00020822,2]
[334403338,1723036233645,-1619.78644028,0.0002083,3]
[334403339,1723036233655,-171.82037497,0.00020831,2]
[334403340,1723036233665,-1138.64679831,0.00020831,2]
[334403341,1723036233674,-380.18011514,0.00020831,2]
[334403342,1723036233684,-308.13974125,0.00020831,2]
[334403343,1723036233693,-301.62047861,0.00020831,2]
[334403344,1723036233703,-3978.09066242,0.00020899,2]
[334403345,1723036233712,-962.114681,0.00020899,2]
[334403346,1723036233722,-476.7534528,0.00020899,2]
[334403347,1723036233732,-359.26552808,0.00020899,2]
[334403348,1723036233742,-155.2619149,0.00020899,2]
[334403349,1723036233752,-155.0,0.00020899,2]
[334403350,1723036233761,-202.81555917,0.00020899,2]
[334403351,1723036233771,-268.05623875,0.00020899,2]
[334403352,1723036233780,-1500.0,0.00020899,2]
[334403353,1723036233790,-239.49185942,0.00020899,2]
[334403354,1723036233799,-359.26552808,0.00020899,2]
[334403355,1723036233808,-155.0,0.00020899,2]
[334403356,1723036233817,-243.154171,0.00020899,2]
[334403357,1723036233826,-1283.81002744,0.00020899,2]
[334403358,1723036233835,-3080.91987303,0.00020899,2]
[334403359,1723036233846,-179.55230051,0.00020899,2]
[334403360,1723036233856,-164.9628186,0.00020899,2]
[334403361,1723036233865,-155.69036707,0.00020899,3]
[334403362,1723036233874,-628.3730026,0.00020899,2]
[334403363,1723036233883,-2084.84657998,0.00020899,2]
[334403364,1723036233897,-921.16736327,0.00020899,2]
[334403365,1723036233906,-628.3730026,0.00020999,2]
[334403366,1723036233915,-367.71679801,0.00020999,2]
[334403367,1723036233924,-155.0,0.00020999,2]
[334403368,1723036233933,-532.06069874,0.00020999,2]
[334403369,1723036233943,-532.06069874,0.00020999,2]
[334403370,1723036233952,-367.71679801,0.00020999,2]
[334403371,1723036233962,-313.59536619,0.00020999,2]
[334403372,1723036233971,-1184.51400069,0.00020999,2]
[334403373,1723036233981,-155.0,0.00020999,2]
[334403374,1723036233990,-155.0,0.00020999,2]
[334403375,1723036234000,-484.99646143,0.00020999,2]
[334403376,1723036234009,-400.0,0.00020999,2]
[334403377,1723036234019,-155.0,0.00020999,2]
[334403378,1723036234028,-3402.9798974,0.00020999,2]
[334403379,1723036234038,-264.38460309,0.00020999,2]
[334403380,1723036234047,-165.44102244,0.00020999,2]
[334403381,1723036234056,-181.71229235,0.00020999,2]
[334403382,1723036234065,-365.60352756,0.00020999,5]
[334403383,1723036234075,-265.33096073,0.00020999,2]
[334403384,1723036234085,-164.33652674,0.00020999,2]
[334403385,1723036234095,-493.40828131,0.00020999,2]
[334403386,1723036234105,-365.60352756,0.00020999,5]
[334403387,1723036234114,-155.0,0.00020999,2]
[334403388,1723036234123,-400.0,0.00020999,2]
[334403389,1723036234132,-155.0,0.00020999,2]
[334403390,1723036234143,-1297.73941226,0.00020999,2]
[334403391,1723036234152,-225.65001596,0.00021,2]
[334403392,1723036234162,-167.0,0.0002106,2]
[334403393,1723036234171,-500.0,0.0002112,2]
[334403394,1723036234180,-500.0,0.00021278,2]
[334403395,1723036234190,-957.24677425,0.00021303,2]
[334403396,1723036234199,-500.0,0.00021349,2]
[334403397,1723036234209,-255.35,0.00021375,2]
[334403398,1723036234218,-500.0,0.0002144,2]
[334403399,1723036234228,-151.0,0.00021553,2]
[334403400,1723036234237,-530.69,0.00021602,2]
[334403401,1723036234247,-150.0,0.00021602,2]
[334403402,1723036234256,-530.69,0.00021602,2]
[334403403,1723036234265,-150.0,0.00021602,2]
[334403404,1723036234274,-530.41,0.00021602,2]
[334403405,1723036234284,-150.0,0.00021602,2]
[334403406,1723036234293,-150.0,0.00021602,2]
[334403407,1723036234305,-1060.74,0.00021696,2]
[334403408,1723036234314,-167.0,0.00021733,2]
[334403409,1723036234323,-167.24387357,0.00021817,2]
[334403410,1723036234333,-500.0,0.000219,2]
[334403411,1723036234342,-264.82,0.000219,2]
[334403412,1723036234352,-1000.0,0.000219,2]
[334403413,1723036234361,-500.0,0.00021901,2]
[334403414,1723036234372,-500.0,0.00021901,2]
[334403415,1723036234381,-329.3507739,0.00021901,2]
[334403416,1723036234391,-100015.4246,0.00021902,2]
[334403417,1723036234401,-608.31,0.00021918,2]
[334403418,1723036234410,-1644.09,0.00021918,2]
[334403419,1723036234419,-150.0,0.00021918,2]
[334403420,1723036234429,-500.0,0.00021918,2]
[334403421,1723036234438,-500.0,0.00021918,2]
[334403422,1723036234448,-214.49611361,0.00021918,2]
[334403423,1723036234457,-186.11,0.00021963,2]
[334403424,1723036234466,-500.0,0.0002216,2]
[334403425,1723036234476,-770.0,0.000222,2]
[334403426,1723036234485,-495.24653263,0.000222,2]
[334403427,1723036234494,-180.0,0.000222,2]
[334403428,1723036234503,-500.0,0.00022238,2]
[334403429,1723036234513,-500.0,0.00022254,2]
[334403430,1723036234523,-217.0,0.0002232,2]
[334403431,1723036234532,-167.0,0.00022406,2]
[334403432,1723036234541,-152.0,0.00022416,2]